bitfinex/quotes_ETHUSD_20251023
["timestamp","ask_amount","ask_price","bid_price","bid_amount"]
[1761184729300,0.69438686,3824.2,3824.1,0.12026567]
[1761184730500,0.69438686,3824.2,3824.1,2.73526004]
[1761184730731,0.69438686,3824.2,3824.1,0.12026567]
[1761184732518,0.69438686,3824.2,3824.1,2.73526004]
[1761184732742,0.69438686,3824.2,3824.1,3.38536004]
[1761184732925,0.001,3824.2,3824.1,4.33140895]
[1761184733754,0.001,3824.2,3824.1,7.63640895]
[1761184736538,0.001,3824.3,3824.2,2.73419166]
[1761184736739,0.001,3824.3,3824.2,4.21536515]
[1761184740256,0.45178224,3824.5,3824.4,2.61478924]
[1761184740457,0.45178224,3824.5,3824.2,2.73419166]
[1761184740661,0.45178224,3824.5,3824.3,2.61483789]
[1761184742367,0.45178224,3824.5,3824.2,3.17827076]
[1761184742531,0.33251657,3824.5,3824.2,2.61490509]
[1761184742863,0.001,3824.6,3824.1,3.305]
[1761184743087,0.1304,3824.2,3824.0,0.15299999]
[1761184744338,0.1304,3824.2,3824.0,2.76804834]
[1761184745366,0.1304,3824.2,3824.0,2.89844834]
[1761184745670,0.1304,3824.2,3824.0,0.28339999]
[1761184746764,0.1304,3824.2,3824.0,2.89845994]
[1761184747444,0.1304,3824.2,3824.0,0.15299999]
[1761184748544,0.1204,3824.2,3824.0,0.15299999]
[1761184748742,3.09235196,3824.2,3824.0,0.15299999]
[1761184749178,3.22087437,3824.1,3824.0,0.15299999]
[1761184749839,4.77607437,3824.1,3824.0,0.15299999]
[1761184754270,2.16108,3824.1,3824.0,0.15299999]
[1761184754674,2.72185457,3824.1,3824.0,0.15299999]
[1761184755456,5.33684894,3824.1,3824.0,0.15299999]
[1761184757167,2.72185457,3824.1,3824.0,0.15299999]
[1761184757348,2.62285457,3824.1,3824.0,0.15299999]
[1761184757549,5.23784894,3824.1,3824.0,0.15299999]
[1761184758379,5.92685457,3824.1,3824.0,0.15299999]
[1761184764196,5.92685457,3824.1,3824.0,0.15499999]
[1761184767907,8.54184894,3824.1,3824.0,0.15499999]
[1761184768483,8.64084894,3824.1,3824.0,0.15499999]
[1761184771490,9.58136882,3824.1,3824.0,0.15499999]
[1761184773706,8.64084894,3824.1,3824.0,0.15499999]
[1761184774909,2.61555452,3823.3,3822.6,2.38161949]
[1761184775213,3.303,3823.2,3822.6,2.53661948]
[1761184775885,3.303,3823.2,3822.7,2.61593355]
[1761184776727,3.303,3823.2,3822.6,2.77100411]
[1761184777032,3.303,3823.2,3822.7,0.4416]
[1761184777531,3.303,3823.2,3822.7,3.05754079]
[1761184777936,3.303,3823.2,3822.8,0.4416]
[1761184781645,3.303,3823.2,3822.8,3.05747768]
[1761184781945,3.303,3823.2,3822.8,0.4416]
[1761184783235,3.304,3823.2,3822.8,0.4416]
[1761184783602,3.304,3823.2,3822.8,2.61586669]
[1761184783805,0.001,3823.2,3823.1,0.2233]
[1761184784001,3.304,3823.2,3823.1,2.83897837]
[1761184784201,3.304,3823.2,3823.1,3.28057837]
[1761184784839,3.4344,3823.2,3823.1,0.6649]
[1761184786841,3.4344,3823.2,3823.1,3.28057837]
[1761184787042,3.4344,3823.2,3823.1,0.6649]
[1761184787210,3.4344,3823.2,3823.1,3.28057837]
[1761184787920,3.4344,3823.2,3823.1,0.6649]
[1761184788650,0.1314,3823.2,3822.8,0.4416]
[1761184788811,0.1314,3823.2,3823.1,0.2233]
[1761184789127,0.1314,3823.2,3822.9,0.4416]
[1761184789309,0.1314,3823.2,3822.9,3.05738216]
[1761184790036,0.1314,3823.2,3822.9,0.4416]
[1761184790238,0.1314,3823.2,3823.0,2.61574158]
[1761184791657,0.1314,3823.2,3823.0,3.05734158]
[1761184792029,0.1314,3823.2,3823.1,0.4416]
[1761184792656,0.1314,3823.2,3822.9,2.61579798]
[1761184792827,0.1314,3823.2,3822.9,3.05739798]
[1761184793357,0.1314,3823.2,3822.7,0.4416]
[1761184793555,0.1314,3823.2,3823.0,2.61573446]
[1761184793960,0.1314,3823.2,3823.0,3.05733446]
[1761184796447,0.1314,3823.2,3823.1,3.05727837]
[1761184796645,0.1314,3823.2,3823.1,3.28057837]
[1761184797933,0.001,3823.2,3823.1,4.27897018]
[1761184798344,0.001,3823.2,3823.1,4.38369688]
[1761184798631,0.001,3823.2,3823.1,7.68569688]
[1761184800552,0.001,3823.2,3823.1,7.81609688]
[1761184801450,0.001,3823.2,3823.1,7.37449688]
[1761184801654,0.001,3823.2,3823.1,6.02240507]
[1761184801886,0.1314,3823.2,3823.1,6.47230507]
[1761184802038,0.1314,3823.2,3823.1,6.58257837]
[1761184804054,0.1314,3823.2,3823.1,3.28057837]
[1761184804665,0.1314,3823.2,3822.9,2.61581065]
[1761184804887,0.1314,3823.2,3822.7,0.78554903]
[1761184805088,0.1314,3823.2,3823.1,2.61567837]
[1761184805545,0.1314,3823.2,3823.1,3.06557837]
[1761184805863,0.1314,3823.2,3823.1,3.28057837]
[1761184806259,0.1314,3823.2,3823.1,0.6649]
[1761184806466,0.1314,3823.2,3823.1,3.06557837]
[1761184807053,0.1314,3823.2,3823.1,2.61567837]
[1761184809973,0.1314,3823.2,3822.9,2.61581346]
[1761184810946,0.1314,3823.2,3823.0,2.61573358]
[1761184811275,0.1314,3823.2,3823.1,2.61567837]
[1761184811681,0.1314,3823.2,3823.0,2.61574183]
[1761184812176,0.1314,3823.2,3822.8,3.302]
[1761184812474,0.1314,3823.2,3823.1,2.61567837]
[1761184812777,0.3339,3823.2,3823.0,2.61573051]
[1761184813076,0.3339,3823.2,3822.9,2.61581197]
[1761184813783,0.3339,3823.2,3823.0,2.61573794]
[1761184813962,0.1314,3823.2,3823.1,2.61567837]
[1761184815753,0.1314,3823.2,3823.0,2.61573266]
[1761184817490,0.1314,3823.2,3823.1,2.61567837]
[1761184818152,0.1314,3823.2,3823.1,3.28057837]
[1761184818782,0.1314,3823.2,3823.1,2.83067837]
[1761184818983,0.001,3823.2,3823.1,3.28057837]
[1761184821794,0.001,3823.2,3823.1,7.51445573]
[1761184822309,0.001,3823.2,3823.1,9.6314144]
[1761184827809,0.001,3823.2,3823.1,8.71543704]
[1761184828309,0.001,3823.2,3823.1,8.03363704]
[1761184829724,0.001,3823.2,3823.1,6.47843704]
[1761184832732,0.001,3823.2,3823.1,6.93933704]
[1761184833235,0.001,3823.2,3823.1,6.47843704]
[1761184833792,0.2038,3823.2,3823.1,6.47843704]
[1761184834034,0.2038,3823.2,3822.9,3.3]
[1761184834194,0.3342,3823.2,3823.0,2.61574086]
[1761184834593,0.3342,3823.2,3823.1,2.61567837]
[1761184834821,0.1314,3823.2,3823.1,2.61567837]
[1761184839421,0.3342,3823.2,3823.0,2.61573759]
[1761184839625,0.3342,3823.2,3822.9,3.3]
[1761184839921,0.3342,3823.2,3823.0,2.61573011]
[1761184842087,0.3342,3823.2,3823.1,2.61567837]
[1761184842930,0.3342,3823.2,3822.9,3.3]
[1761184843132,0.2028,3823.1,3822.9,3.3]
[1761184843334,0.2028,3823.1,3823.0,2.61574679]
[1761184844234,0.2028,3823.1,3822.9,5.91580359]
[1761184844728,0.2028,3823.1,3823.0,2.61574679]
[1761184845891,0.2028,3823.1,3822.9,3.3]
[1761184846098,0.2028,3823.1,3822.6,0.002]
[1761184846612,0.1304,3822.7,3822.6,0.002]
[1761184847124,0.3345,3822.7,3822.6,0.002]
[1761184847489,0.1304,3822.7,3822.6,0.002]
[1761184847694,0.12752279,3822.7,3822.6,0.002]
[1761184847991,0.33092279,3822.7,3822.6,0.002]
[1761184848725,0.33092279,3822.7,3822.6,2.6180205]
[1761184849442,0.12752279,3822.7,3822.6,2.6180205]
[1761184849797,0.12752279,3822.7,3822.6,2.8214205]
[1761184853310,0.12752279,3822.7,3822.6,0.2054]
[1761184853541,0.33092279,3822.7,3822.6,0.002]
[1761184855635,2.94687486,3822.7,3822.6,0.002]
[1761184856210,3.45375486,3822.7,3822.6,0.002]
[1761184856658,4.01532395,3822.7,3822.6,0.002]
[1761184856810,6.89214301,3822.7,3822.6,0.002]
[1761184857554,8.44734301,3822.7,3822.6,0.002]
[1761184859211,11.74734301,3822.7,3822.6,0.002]
[1761184860306,8.44734301,3822.7,3822.6,0.002]
[1761184860513,6.05404909,3822.7,3822.6,0.002]
[1761184860939,5.69588,3822.7,3822.6,0.002]
[1761184861240,6.25732188,3822.7,3822.6,0.002]
[1761184861421,6.05392188,3822.7,3822.6,0.002]
[1761184861745,2.75392188,3822.7,3822.6,0.002]
[1761184861947,3.4304,3822.7,3822.6,0.002]
[1761184862853,0.1304,3822.7,3822.6,0.002]
[1761184863147,0.1304,3822.7,3822.6,3.0788205]
[1761184864014,0.1304,3822.7,3822.6,2.6180205]
[1761184864855,0.1304,3822.7,3822.6,3.0788205]
[1761184865520,0.1304,3822.7,3822.6,0.002]
[1761184866158,0.1314,3822.7,3822.6,0.002]
[1761184866676,0.2812,3822.7,3822.6,0.002]
[1761184867912,0.1314,3822.7,3822.6,0.002]
[1761184868051,3.4314,3822.7,3822.6,0.4628]
[1761184868656,0.1314,3822.7,3822.6,0.4628]
[1761184868882,0.1314,3822.7,3822.6,3.0788205]
[1761184869186,0.1314,3822.7,3822.6,0.4628]
[1761184870389,0.1314,3822.7,3822.6,3.0788205]
[1761184870755,0.1314,3822.7,3822.6,0.4628]
[1761184871374,0.1314,3822.7,3822.6,1.24846218]
[1761184871579,0.1314,3822.7,3822.6,0.78766218]
[1761184872183,0.1314,3822.7,3822.6,1.24846218]
[1761184872390,0.1314,3822.7,3822.6,0.78766218]
[1761184874901,0.4999,3822.7,3822.6,0.78766218]
[1761184875400,0.2805,3822.7,3822.6,0.78766218]
[1761184875606,3.45719003,3822.7,3822.6,0.78766218]
[1761184876508,0.84123796,3822.7,3822.6,0.78766218]
[1761184876874,0.2805,3822.7,3822.6,0.78766218]
[1761184877412,0.84123796,3822.7,3822.6,0.78766218]
[1761184879019,0.69213796,3822.7,3822.6,0.78766218]
[1761184879521,0.1314,3822.7,3822.6,0.78766218]
[1761184879816,3.4304,3822.7,3822.6,0.78766218]
[1761184880028,3.99113796,3822.7,3822.6,0.78766218]
[1761184882820,3.86073796,3822.7,3822.6,1.24846218]
[1761184883020,3.4304,3822.7,3822.6,1.24846218]
[1761184883239,3.99169986,3822.7,3822.6,0.78766218]
[1761184886432,0.69269986,3822.7,3822.6,0.78766218]
[1761184886697,0.1314,3822.7,3822.6,0.78766218]
[1761184886898,0.69269986,3822.7,3822.6,0.78766218]
[1761184887217,0.1314,3822.7,3822.6,0.78766218]
[1761184887417,0.69269986,3822.7,3822.6,0.78766218]
[1761184889009,0.84319986,3822.7,3822.6,0.78766218]
[1761184889620,3.45915193,3822.7,3822.6,0.78766218]
[1761184890129,0.84319986,3822.7,3822.6,0.78766218]
[1761184892330,0.69269986,3822.7,3822.6,0.78766218]
[1761184892924,0.84319986,3822.7,3822.6,0.78766218]
[1761184895728,0.69269986,3822.7,3822.6,0.78766218]
[1761184896551,0.69269986,3822.7,3822.3,2.8667797]
[1761184896713,0.56129986,3822.6,3822.4,0.4609]
[1761184896914,3.86029986,3822.5,3822.4,0.4609]
[1761184897141,3.99149986,3822.5,3822.3,2.4058797]
[1761184897343,3.4302,3822.5,3822.3,2.4058797]
[1761184897511,3.4302,3822.5,3822.4,0.78570539]
[1761184897714,3.99150282,3822.5,3822.4,0.78570539]
[1761184897911,3.99150282,3822.5,3822.4,1.24660539]
[1761184898154,0.69250282,3822.5,3822.4,1.24660539]
[1761184898354,0.1312,3822.5,3822.4,3.86276277]
[1761184898720,0.1312,3822.6,3822.5,2.61606479]
[1761184899046,0.1312,3822.6,3822.5,3.07696479]
[1761184899360,0.1312,3822.6,3822.5,3.86262697]
[1761184900537,0.1312,3822.6,3822.5,1.24656218]
[1761184902128,0.69266261,3822.6,3822.5,1.24656218]
[1761184902345,0.1312,3822.6,3822.5,1.24656218]
[1761184902847,0.69266229,3822.6,3822.5,1.24656218]
[1761184903448,0.1312,3822.6,3822.5,1.24656218]
[1761184903686,0.69268099,3822.6,3822.5,0.78566218]
[1761184904955,0.1312,3822.6,3822.5,0.78566218]
[1761184905250,0.69286005,3822.6,3822.5,0.78566218]
[1761184905428,0.1312,3822.6,3822.5,0.78566218]
[1761184906652,0.1312,3822.6,3822.5,1.24656218]
[1761184907155,0.1312,3822.6,3822.5,3.86265112]
[1761184907355,0.56210159,3822.7,3822.6,2.6160205]
[1761184907356,0.001,3822.7,3822.6,2.6160205]
[1761184907568,0.001,3822.7,3822.6,4.6321205]
[1761184908153,0.001,3822.7,3822.6,4.73685543]
[1761184908354,0.001,3822.7,3822.6,6.39022091]
[1761184908568,0.001,3822.7,3822.6,9.22832091]
[1761184908735,0.001,3822.7,3822.6,4.95893493]
[1761184909168,0.001,3822.7,3822.6,8.03585543]
[1761184916369,0.001,3822.7,3822.6,8.03485543]
[1761184921847,0.001,3822.7,3822.6,0.10473493]
[1761184922079,0.2816,3822.7,3822.6,0.10473493]
[1761184922280,0.2816,3822.7,3822.3,0.002]
[1761184922514,0.001,3822.7,3822.4,0.10476154]
[1761184922816,0.1502,3822.6,3822.4,0.10476154]
[1761184923026,0.1312,3822.5,3822.4,0.10476154]
[1761184923324,0.2814,3822.5,3822.4,0.10476154]
[1761184923493,0.1312,3822.5,3822.4,0.10476154]
[1761184923690,0.1312,3822.5,3822.4,0.54456154]
[1761184923891,0.1312,3822.5,3822.4,0.10476154]
[1761184924394,0.1312,3822.5,3822.3,0.002]
[1761184924910,0.2821,3822.5,3822.3,0.002]
[1761184925482,0.1509,3822.4,3822.3,0.002]
[1761184928714,0.1312,3822.5,3822.3,0.002]
[1761184929416,0.2821,3822.5,3822.3,0.002]
[1761184929819,0.1509,3822.4,3822.3,0.002]
[1761184933021,0.1519,3822.4,3822.3,0.002]
[1761184934890,6.06605738,3822.4,3822.3,0.002]
[1761184935388,6.62709219,3822.4,3822.3,0.002]
[1761184935595,7.13397219,3822.4,3822.3,0.002]
[1761184937317,7.83554757,3822.4,3822.3,0.002]
[1761184938605,2.61663657,3821.7,3820.9,1.5552]
[1761184938826,5.91463657,3821.7,3820.9,2.6171594]
[1761184939010,6.28553657,3821.7,3820.9,2.6171594]
[1761184939721,6.28553657,3821.7,3820.8,2.61723882]
[1761184940702,6.28553657,3821.7,3820.9,2.61717829]
[1761184940903,6.57191657,3821.7,3820.7,0.4398]
[1761184941248,6.57191657,3821.7,3820.7,3.0571047]
[1761184941622,6.57191657,3821.7,3820.8,2.61723933]
[1761184942233,6.57191657,3821.7,3820.9,3.05697905]
[1761184942415,6.42151657,3821.7,3821.1,0.6743]
[1761184942729,3.298,3821.7,3821.3,0.4418]
[1761184943494,5.91463657,3821.7,3821.3,0.4418]
[1761184943727,3.298,3821.7,3821.3,0.002]
[1761184944400,8.12781657,3821.7,3821.3,0.002]
[1761184944596,6.09179045,3821.7,3821.3,0.002]
[1761184944935,10.17591792,3821.7,3821.3,0.002]
[1761184945303,9.47434254,3821.7,3821.3,0.002]
[1761184945509,10.17591792,3821.7,3821.3,0.002]
[1761184946326,9.38979045,3821.7,3821.3,0.002]
[1761184948513,9.52099045,3821.7,3821.3,0.002]
[1761184950610,8.81941507,3821.7,3821.3,0.002]
[1761184951330,9.52099045,3821.7,3821.3,0.002]
[1761184951647,8.81941507,3821.7,3821.3,0.002]
[1761184952553,5.52141507,3821.7,3821.3,0.002]
[1761184952746,8.81941507,3821.7,3821.3,0.002]
[1761184955744,5.52141507,3821.7,3821.3,0.002]
[1761184955955,8.66831507,3821.7,3821.3,0.002]
[1761184956272,6.60623507,3821.7,3821.3,0.002]
[1761184956418,6.60623507,3821.7,3821.6,1.343]
[1761184956950,6.60623507,3821.7,3821.6,0.902]
[1761184958152,3.30823507,3821.7,3821.6,0.902]
[1761184958351,6.60723507,3821.7,3821.6,0.902]
[1761184958858,0.001,3821.8,3821.6,1.343]
[1761184959145,0.001,3821.8,3821.7,3.19233657]
[1761184959520,0.001,3821.8,3821.7,3.21850293]
[1761184959722,0.001,3821.8,3821.7,3.05763657]
[1761184960987,0.001,3821.8,3821.7,0.441]
[1761184962877,0.001,3821.8,3821.7,3.05763657]
[1761184963077,0.001,3821.8,3821.7,0.441]
[1761184963789,0.001,3821.8,3821.7,3.05763657]
[1761184964482,0.001,3821.8,3821.7,0.441]
[1761184968823,0.1322,3821.8,3821.7,0.441]
[1761184973473,0.1322,3821.8,3821.6,0.902]
[1761184973912,2.74881734,3821.8,3821.6,0.902]
[1761184974075,3.298,3821.7,3821.6,0.902]
[1761184977374,6.06433657,3821.7,3821.6,0.902]
[1761184980530,6.62672499,3821.7,3821.6,0.902]
[1761184982229,6.6270708,3821.7,3821.6,0.902]
[1761184982937,7.1339508,3821.7,3821.6,0.902]
[1761184983229,3.85973423,3821.7,3821.6,0.902]
[1761184983522,6.4763708,3821.7,3821.6,0.902]
[1761184983711,3.1793708,3821.7,3821.6,0.902]
[1761184983905,6.4773708,3821.7,3821.6,0.902]
[1761184984110,6.6270708,3821.7,3821.6,0.902]
[1761184985311,6.4773708,3821.7,3821.6,0.902]
[1761184986752,6.6270708,3821.7,3821.6,0.902]
[1761184987050,7.1339508,3821.7,3821.6,0.902]
[1761184988202,6.9842508,3821.7,3821.6,0.902]
[1761184988900,7.1339508,3821.7,3821.6,0.902]
[1761184991111,7.83736859,3821.7,3821.6,0.902]
[1761184991449,7.83815804,3821.7,3821.6,0.902]
[1761184993055,7.96935804,3821.7,3821.6,0.902]
[1761184993458,7.2651508,3821.7,3821.6,0.902]
[1761184998335,4.52188001,3821.7,3821.6,0.902]
[1761184998541,7.31300001,3821.7,3821.6,0.902]
[1761185001145,0.69393423,3821.7,3821.6,1.3462]
[1761185001454,3.99193423,3821.7,3821.6,1.3462]
[1761185004883,6.6085708,3821.7,3821.6,0.902]
[1761185005245,6.7582708,3821.7,3821.6,0.902]
[1761185006057,6.6085708,3821.7,3821.6,0.902]
[1761185007252,6.7582708,3821.7,3821.6,0.902]
[1761185007945,6.6085708,3821.7,3821.6,0.902]
[1761185009446,6.04583657,3821.7,3821.6,0.902]
[1761185009643,9.9944803,3821.7,3821.6,0.902]
[1761185009869,10.1441803,3821.7,3821.6,0.902]
[1761185010191,7.26631212,3821.7,3821.6,0.902]
[1761185010384,7.11661212,3821.7,3821.6,0.902]
[1761185011246,4.69698857,3821.7,3821.6,1.3314]
[1761185011475,3.99209555,3821.7,3821.6,1.3314]
[1761185011871,6.60873212,3821.7,3821.6,0.902]
[1761185012763,3.99209555,3821.7,3821.6,1.3314]
[1761185012965,6.60873212,3821.7,3821.6,1.3314]
[1761185013161,6.60873212,3821.7,3821.6,0.902]
[1761185013461,3.99209555,3821.7,3821.6,0.902]
[1761185013650,6.60873212,3821.7,3821.6,0.902]
[1761185013851,7.31362514,3821.7,3821.6,0.902]
[1761185014363,7.46332514,3821.7,3821.6,0.902]
[1761185014575,7.31362514,3821.7,3821.6,0.902]
[1761185014752,7.46332514,3821.7,3821.6,0.902]
[1761185015282,6.60873212,3821.7,3821.6,0.902]
[1761185015463,6.60873212,3821.7,3821.6,1.3314]
[1761185015464,7.31305043,3821.7,3821.6,1.3314]
[1761185015860,1.39941386,3821.7,3821.6,0.902]
[1761185016059,7.31305043,3821.7,3821.6,0.902]
[1761185016362,7.31305043,3821.7,3821.6,1.3314]
[1761185018195,7.31305043,3821.7,3821.6,0.902]
[1761185018400,7.31305043,3821.7,3821.6,1.3314]
[1761185019112,3.99209555,3821.7,3821.6,1.3314]
[1761185021918,0.69509555,3821.7,3821.6,1.3314]
[1761185022127,3.99209555,3821.7,3821.6,1.3314]
[1761185026012,3.99209555,3821.7,3821.6,0.902]
[1761185028383,3.99209555,3821.7,3821.6,1.3314]
[1761185028819,6.60873212,3821.7,3821.6,0.902]
[1761185029117,3.99209555,3821.7,3821.6,0.902]
[1761185030011,6.60873212,3821.7,3821.6,0.902]
[1761185032541,6.75843212,3821.7,3821.6,0.902]
[1761185033037,6.60873212,3821.7,3821.6,0.902]
[1761185034231,3.99209555,3821.7,3821.6,1.3314]
[1761185037743,0.69509555,3821.7,3821.6,1.3314]
[1761185037908,3.99209555,3821.7,3821.6,1.3314]
[1761185039010,3.31173212,3821.7,3821.6,0.902]
[1761185039213,6.60873212,3821.7,3821.6,0.902]
[1761185039827,3.99209555,3821.7,3821.6,0.902]
[1761185040234,6.60873212,3821.7,3821.6,0.902]
[1761185040550,6.75843212,3821.7,3821.6,0.902]
[1761185040848,7.33155043,3821.7,3821.6,0.902]
[1761185041049,6.62723212,3821.7,3821.6,0.902]
[1761185041346,7.13411212,3821.7,3821.6,0.902]
[1761185042652,8.07393805,3821.7,3821.6,0.902]
[1761185043865,12.02012162,3821.7,3821.6,0.902]
[1761185044328,13.42999721,3821.7,3821.6,0.902]
[1761185045949,3.12365351,3821.5,3821.4,1e-08]
[1761185046247,3.83724906,3821.5,3821.4,1e-08]
[1761185049924,5.39244906,3821.5,3821.4,1e-08]
[1761185050123,5.49728611,3821.5,3821.4,1e-08]
[1761185050418,4.67899047,3821.3,3821.2,1e-08]
[1761185050618,12.00189552,3821.3,3821.2,1e-08]
[1761185050857,12.15159552,3821.3,3821.2,1e-08]
[1761185051155,18.59159552,3821.3,3821.2,1e-08]
[1761185051459,20.10371861,3821.3,3821.2,1e-08]
[1761185056535,18.69643531,3821.3,3821.2,1e-08]
[1761185059155,19.95192342,3821.3,3821.2,1e-08]
[1761185059354,20.10162342,3821.3,3821.2,1e-08]
[1761185062985,16.80462342,3821.3,3821.2,1e-08]
[1761185063283,15.54107591,3821.3,3821.2,1e-08]
[1761185063584,16.04795591,3821.3,3821.2,1e-08]
[1761185063988,15.11108602,3821.3,3821.2,1e-08]
[1761185064783,11.81408602,3821.3,3821.2,1e-08]
[1761185065087,15.11108602,3821.3,3821.2,1e-08]
[1761185065387,16.04825413,3821.3,3821.2,1e-08]
[1761185066089,15.11108602,3821.3,3821.2,1e-08]
[1761185066291,16.04825413,3821.3,3821.2,1e-08]
[1761185067262,15.11108602,3821.3,3821.2,1e-08]
[1761185068480,15.26178602,3821.3,3821.2,1e-08]
[1761185068687,15.11208602,3821.3,3821.2,1e-08]
[1761185069265,16.51727413,3821.3,3821.2,1e-08]
[1761185072403,15.11208602,3821.3,3821.2,1e-08]
[1761185085013,15.11208602,3821.3,3821.2,0.47180001]
[1761185085321,15.11208602,3821.3,3821.2,1e-08]
[1761185085916,7.13609555,3821.3,3821.2,0.47180001]
[1761185086105,13.99028081,3821.3,3821.2,0.47180001]
[1761185087210,10.43309555,3821.3,3821.2,0.47180001]
[1761185087586,13.05000602,3821.3,3821.2,0.47180001]
[1761185087780,7.13609555,3821.3,3821.2,0.47180001]
[1761185087980,3.99309555,3821.3,3821.2,0.47180001]
[1761185088889,0.69609555,3821.3,3821.2,0.47180001]
[1761185089095,3.99309555,3821.3,3821.2,0.47180001]
[1761185089280,4.69797112,3821.3,3821.2,0.47180001]
[1761185094046,3.99309555,3821.3,3821.2,0.47180001]
[1761185094714,4.69797112,3821.3,3821.2,0.47180001]
[1761185095231,7.31488159,3821.3,3821.2,0.47180001]
[1761185095843,4.69797112,3821.3,3821.2,0.47180001]
[1761185096334,3.99309555,3821.3,3821.2,0.47180001]
[1761185096539,4.69797112,3821.3,3821.2,0.47180001]
[1761185097851,3.99309555,3821.3,3821.2,0.47180001]
[1761185098046,0.69609555,3821.3,3821.2,0.47180001]
[1761185098212,3.99209555,3821.3,3821.2,0.47180001]
[1761185101316,6.60900602,3821.3,3821.2,1e-08]
[1761185101735,6.75870602,3821.3,3821.2,1e-08]
[1761185102920,6.60900602,3821.3,3821.2,1e-08]
[1761185103114,7.26558602,3821.3,3821.2,1e-08]
[1761185103544,8.82078602,3821.3,3821.2,1e-08]
[1761185104756,10.23106926,3821.3,3821.2,1e-08]
[1761185105451,8.82078602,3821.3,3821.2,1e-08]
[1761185107256,4.67905895,3821.2,3821.1,0.002]
[1761185107425,5.3926545,3821.2,3821.1,0.002]
[1761185107626,11.8326545,3821.2,3821.1,0.002]
[1761185109277,4.67926443,3820.9,3820.8,0.002]
[1761185109434,14.97915998,3820.9,3820.8,0.002]
[1761185109758,15.54665998,3820.9,3820.8,0.002]
[1761185110151,0.50688,3820.1,3819.2,0.4423]
[1761185110333,2.61821354,3819.4,3819.2,0.4423]
[1761185110534,3.296,3819.3,3819.2,0.4423]
[1761185114744,5.91428083,3819.3,3819.2,0.4423]
[1761185114929,5.91428083,3819.3,3819.0,0.6768]
[1761185115135,3.296,3819.3,3819.0,0.2345]
[1761185115361,0.4334,3819.6,3819.0,0.6768]
[1761185115362,1.5552,3819.6,3819.0,0.6768]
[1761185115663,0.56185878,3819.5,3819.1,0.4423]
[1761185115869,0.56185878,3819.5,3819.1,0.79375271]
[1761185116163,0.56185878,3819.9,3819.2,0.4423]
[1761185116338,1.5552,3819.7,3819.2,0.4423]
[1761185116545,1.5552,3819.7,3819.2,3.06063963]
[1761185117065,1.5552,3819.7,3819.3,0.4423]
[1761185117268,1.5552,3820.0,3819.3,3.06052587]
[1761185117437,3.85874371,3819.9,3819.3,3.06052587]
[1761185117640,3.85874371,3819.8,3819.4,3.06051228]
[1761185117850,3.297,3819.7,3819.4,3.06051228]
[1761185118051,3.297,3819.7,3819.5,0.4423]
[1761185120077,0.1312,3819.6,3819.5,0.4423]
[1761185120378,3.4282,3819.6,3819.5,3.06044373]
[1761185120743,0.1312,3819.6,3819.5,3.06044373]
[1761185120948,0.1312,3819.6,3819.5,3.62831423]
[1761185122089,0.1312,3819.6,3819.5,3.06044373]
[1761185123092,0.1312,3819.6,3819.5,3.06244373]
[1761185123958,0.1312,3819.6,3819.5,0.4443]
[1761185124158,0.1312,3819.6,3819.5,0.002]
[1761185124358,0.1312,3819.6,3819.5,0.455]
[1761185127092,3.4282,3819.6,3819.5,3.07314373]
[1761185129185,3.4282,3819.6,3819.5,0.455]
[1761185129386,0.1312,3819.6,3819.5,0.455]
[1761185129580,0.1312,3819.6,3819.5,0.002]
[1761185129793,0.1312,3819.6,3819.5,0.4584]
[1761185131393,0.69448573,3819.6,3819.5,0.4584]
[1761185131693,0.69448573,3819.6,3819.5,0.002]
[1761185131987,3.31256092,3819.6,3819.5,0.002]
[1761185133886,3.53006092,3819.6,3819.5,0.002]
[1761185134592,4.03694092,3819.6,3819.5,0.002]
[1761185135368,6.60956092,3819.6,3819.5,0.002]
[1761185135908,6.82706092,3819.6,3819.5,0.002]
[1761185136601,6.60956092,3819.6,3819.5,0.002]
[1761185137581,3.31256092,3819.6,3819.5,0.002]
[1761185137788,7.18308685,3819.6,3819.5,0.002]
[1761185138302,6.47836092,3819.6,3819.5,0.002]
[1761185138715,6.61366092,3819.6,3819.5,0.002]
[1761185139582,7.55259836,3819.6,3819.5,0.002]
[1761185140968,9.10779836,3819.6,3819.5,0.002]
[1761185141197,9.61467836,3819.6,3819.5,0.002]
[1761185141982,8.67574092,3819.6,3819.5,0.002]
[1761185143919,2.6184949,3819.0,3818.3,2.31074835]
[1761185144113,3.86028573,3818.9,3818.3,2.31074835]
[1761185144411,0.56328573,3818.8,3818.3,2.31074835]
[1761185146107,0.56328573,3818.8,3818.4,0.4267]
[1761185146307,0.56328573,3818.8,3818.2,2.61902711]
[1761185146506,0.56328573,3818.8,3818.1,0.4267]
[1761185146811,0.56328573,3818.7,3818.3,2.61891597]
[1761185147108,3.297,3818.6,3818.4,3.04555188]
[1761185147404,3.297,3818.5,3818.4,3.04555188]
[1761185147603,3.297,3818.5,3818.4,2.61885188]
[1761185147809,3.4282,3818.5,3817.9,0.6878]
[1761185147977,3.4282,3818.5,3818.0,0.91934]
[1761185148404,3.4282,3818.5,3818.2,2.61897971]
[1761185148574,0.1312,3818.5,3818.2,2.61897971]
[1761185148776,0.1312,3818.5,3818.3,0.4267]
[1761185149009,0.1312,3818.5,3818.3,3.04563637]
[1761185149406,0.1312,3818.5,3818.3,0.4267]
[1761185149707,0.1312,3818.5,3818.1,3.04574396]
[1761185150175,0.1312,3818.5,3818.2,0.4267]
[1761185150370,0.1312,3818.5,3818.2,3.04571047]
[1761185150681,0.1312,3818.5,3818.4,2.61889796]
[1761185151326,0.1312,3818.5,3818.4,3.04559796]
[1761185152102,0.1312,3818.5,3818.4,2.61889796]
[1761185152824,0.1312,3818.5,3818.4,3.04559796]
[1761185154314,0.1312,3818.5,3818.3,2.6189496]
[1761185154517,0.1312,3818.5,3818.4,2.61889796]